Workbook

Sheet паспорт
A1: ПАТ "УКРТРАНСГАЗ" | G1: ПАСПОРТ ФІЗИКО-ХІМІЧНИХ ПОКАЗНИКІВ ПРИРОДНОГО ГАЗУ № 655
A2: Філія "УМГ "ХАРКІВТРАНСГАЗ" | G2: переданого Сєвєродонецьким ЛВУМГ та прийнятого ПАТ "Луганськгаз"
A3: Сєвєродонецьке ЛВУМГ | G3: Маршрут № 655
A4: Вимірювальна хіміко-аналітична лабораторія
A5: Свідоцтво № РЬ089/2014 чинно до 06.06.2017 р. | K5: по газопроводу "Ставрополь-Москва,Краснодарский край-Серпухов" | V5: за період з | X5: 01.02.2017 р. | Z5: по | AA5: 28.02.2017 р.
A7: Число місяця | B7: Компонентний склад, мол. % | N7: Фізико-хімічні показники газу обчислені на основі компонентного складу, 101,325 кПа | X7: Температура точки роси за вологою (Р = 3.92 МПа), °С | Y7: Температура точки роси за вуглеводнями, °С | Z7: Вміст сірководню, г/м3 | AA7: Вміст меркаптанової сірки, г/м3 | AB7: Вміст механічних домішок, г/м3
N8: Густина абсолютна, кг/м3,при 20 °С, | O8: Температура вимірювання/згоряння при 20/25°С
B9: метан, С1 | C9: етан, С2 | D9: пропан, С3 | E9: ізо-бутан, і-С4 | F9: н-бутан, н-С4 | G9: нео-пентан, нео-С5 | H9: ізо-пентан, і-С5 | I9: н-пентан, н-С5 | J9: гексани та вищі, С6+ | K9: кисень, О2 | L9: азот, N2 | M9: діоксид вуглецю, CО2 | O9: Теплота згоряння нижча | R9: Теплота згоряння вища | U9: Число Воббе вище
O10: ккал/м³ | P10: МДж/м³ | Q10: кВт⋅год/м³ | R10: ккал/м³ | S10: МДж/м³ | T10: кВт⋅год/м³ | U10: ккал/м³ | V10: МДж/м³ | W10: кВт⋅год/м³
A11: 1 | O11: =P11*238.8459 -> 8035.564267 | P11: 33.6433 | Q11: =P11/3.6 -> 9.345361111 | R11: =S11*238.8459 -> 8904.175152 | S11: 37.28 | T11: =S11/3.6 -> 10.35555556 | U11: =V11/0.0041868 -> 11536.63896 | V11: 48.3016 | W11: =V11/3.6 -> 13.41711111 | AC11: =SUM(B11:M11)+$K$42+$N$42 -> 0
A12: 2 | O12: =P12*238.8459 -> 8035.564267 | P12: 33.6433 | Q12: =P12/3.6 -> 9.345361111 | R12: =S12*238.8459 -> 8904.175152 | S12: 37.28 | T12: =S12/3.6 -> 10.35555556 | U12: =V12/0.0041868 -> 11536.63896 | V12: 48.3016 | W12: =V12/3.6 -> 13.41711111 | AC12: 0
A13: 3 | O13: 8035.564267 | P13: 33.6433 | Q13: 9.345361111 | R13: 8904.175152 | S13: 37.28 | T13: 10.35555556 | U13: 11536.63896 | V13: 48.3016 | W13: 13.41711111 | AC13: 0 | AD13: =IF(AC13=100,"ОК"," ") -> 
A14: 4 | O14: 8035.564267 | P14: 33.6433 | Q14: 9.345361111 | R14: 8904.175152 | S14: 37.28 | T14: 10.35555556 | U14: 11536.63896 | V14: 48.3016 | W14: 13.41711111 | AC14: 0 | AD14: =IF(AC14=100,"ОК"," ") -> 
A15: 5 | O15: 8035.564267 | P15: 33.6433 | Q15: 9.345361111 | R15: 8904.175152 | S15: 37.28 | T15: 10.35555556 | U15: 11536.63896 | V15: 48.3016 | W15: 13.41711111 | AC15: 0
A16: 6 | B16: 93.4229 | C16: 3.21 | D16: 0.8026 | E16: 0.0803 | F16: 0.0993 | G16: 0.0021 | H16: 0.0195 | I16: 0.0156 | J16: 0.0299 | K16: 0.012 | L16: 2.067 | M16: 0.2388 | N16: 0.7145 | O16: =P16*238.8459 -> 8151.022376 | P16: 34.1267 | Q16: =P16/3.6 -> 9.479638889 | R16: 9031.360594 | S16: 37.8125 | T16: =S16/3.6 -> 10.50347222 | U16: 11725.75714 | V16: 49.0934 | W16: 13.63705556 | AC16: 100 | AD16: ОК
A17: 7 | O17: =P17*238.8459 -> 8151.022376 | P17: 34.1267 | Q17: =P17/3.6 -> 9.479638889 | R17: =S17*238.8459 -> 9031.360594 | S17: 37.8125 | T17: =S17/3.6 -> 10.50347222 | U17: =V17/0.0041868 -> 11725.75714 | V17: 49.0934 | W17: =V17/3.6 -> 13.63705556 | AC17: 0
A18: 8 | O18: 8151.022376 | P18: 34.1267 | Q18: 9.479638889 | R18: 9031.360594 | S18: 37.8125 | T18: 10.50347222 | U18: 11725.75714 | V18: 49.0934 | W18: 13.63705556 | AC18: 0
A19: 9 | O19: 8151.022376 | P19: 34.1267 | Q19: 9.479638889 | R19: 9031.360594 | S19: 37.8125 | T19: 10.50347222 | U19: 11725.75714 | V19: 49.0934 | W19: 13.63705556 | AC19: 0
A20: 10 | O20: 8151.022376 | P20: 34.1267 | Q20: 9.479638889 | R20: 9031.360594 | S20: 37.8125 | T20: 10.50347222 | U20: 11725.75714 | V20: 49.0934 | W20: 13.63705556 | AC20: 0
A21: 11 | O21: 8151.022376 | P21: 34.1267 | Q21: 9.479638889 | R21: 9031.360594 | S21: 37.8125 | T21: 10.50347222 | U21: 11725.75714 | V21: 49.0934 | W21: 13.63705556 | AC21: 0
A22: 12 | O22: 8151.022376 | P22: 34.1267 | Q22: 9.479638889 | R22: 9031.360594 | S22: 37.8125 | T22: 10.50347222 | U22: 11725.75714 | V22: 49.0934 | W22: 13.63705556 | AC22: 0
A23: 13 | O23: 8151.022376 | P23: 34.1267 | Q23: 9.479638889 | R23: 9031.360594 | S23: 37.8125 | T23: 10.50347222 | U23: 11725.75714 | V23: 49.0934 | W23: 13.63705556 | AC23: 0
A24: 14 | O24: 8151.022376 | P24: 34.1267 | Q24: 9.479638889 | R24: 9031.360594 | S24: 37.8125 | T24: 10.50347222 | U24: 11725.75714 | V24: 49.0934 | W24: 13.63705556 | AC24: 0
A25: 15 | O25: 8151.022376 | P25: 34.1267 | Q25: 9.479638889 | R25: 9031.360594 | S25: 37.8125 | T25: 10.50347222 | U25: 11725.75714 | V25: 49.0934 | W25: 13.63705556 | AC25: 0
A26: 16 | B26: 93.3759 | C26: 3.0821 | D26: 0.7998 | E26: 0.0873 | F26: 0.1226 | G26: 0.0017 | H26: 0.0205 | I26: 0.0179 | J26: 0.0163 | K26: 0.0137 | L26: 2.1689 | M26: 0.2933 | N26: 0.7151 | O26: =P26*238.8459 -> 8132.153549 | P26: 34.0477 | Q26: =P26/3.6 -> 9.457694444 | R26: =S26*238.8459 -> 9010.676539 | S26: 37.7259 | T26: =S26/3.6 -> 10.47941667 | U26: =V26/0.0041868 -> 11694.22948 | V26: 48.9614 | W26: =V26/3.6 -> 13.60038889 | X26: -22.2 | Y26: -21.1 | Z26: 0.0001 | AA26: 0.003 | AB26: відс | AC26: 100 | AD26: ОК
A27: 17 | O27: =P27*238.8459 -> 8132.153549 | P27: 34.0477 | Q27: =P27/3.6 -> 9.457694444 | R27: =S27*238.8459 -> 9010.676539 | S27: 37.7259 | T27: =S27/3.6 -> 10.47941667 | U27: =V27/0.0041868 -> 11694.22948 | V27: 48.9614 | W27: =V27/3.6 -> 13.60038889 | AC27: 0
A28: 18 | O28: 8132.153549 | P28: 34.0477 | Q28: 9.457694444 | R28: 9010.676539 | S28: 37.7259 | T28: 10.47941667 | U28: 11694.22948 | V28: 48.9614 | W28: 13.60038889 | AC28: 0
A29: 19 | O29: 8132.153549 | P29: 34.0477 | Q29: 9.457694444 | R29: 9010.676539 | S29: 37.7259 | T29: 10.47941667 | U29: 11694.22948 | V29: 48.9614 | W29: 13.60038889 | AC29: 0
A30: 20 | O30: 8132.153549 | P30: 34.0477 | Q30: 9.457694444 | R30: 9010.676539 | S30: 37.7259 | T30: 10.47941667 | U30: 11694.22948 | V30: 48.9614 | W30: 13.60038889 | AC30: 0 | AD30: =IF(AC30=100,"ОК"," ") -> 
A31: 21 | O31: 8132.153549 | P31: 34.0477 | Q31: 9.457694444 | R31: 9010.676539 | S31: 37.7259 | T31: 10.47941667 | U31: 11694.22948 | V31: 48.9614 | W31: 13.60038889 | AC31: 0
A32: 22 | O32: 8132.153549 | P32: 34.0477 | Q32: 9.457694444 | R32: 9010.676539 | S32: 37.7259 | T32: 10.47941667 | U32: 11694.22948 | V32: 48.9614 | W32: 13.60038889 | AC32: 0
A33: 23 | O33: 8132.153549 | P33: 34.0477 | Q33: 9.457694444 | R33: 9010.676539 | S33: 37.7259 | T33: 10.47941667 | U33: 11694.22948 | V33: 48.9614 | W33: 13.60038889 | AC33: 0 | AD33: =IF(AC33=100,"ОК"," ") -> 
A34: 24 | O34: 8132.153549 | P34: 34.0477 | Q34: 9.457694444 | R34: 9010.676539 | S34: 37.7259 | T34: 10.47941667 | U34: 11694.22948 | V34: 48.9614 | W34: 13.60038889 | AC34: 0
A35: 25 | O35: 8132.153549 | P35: 34.0477 | Q35: 9.457694444 | R35: 9010.676539 | S35: 37.7259 | T35: 10.47941667 | U35: 11694.22948 | V35: 48.9614 | W35: 13.60038889 | AC35: 0
A36: 26 | O36: 8132.153549 | P36: 34.0477 | Q36: 9.457694444 | R36: 9010.676539 | S36: 37.7259 | T36: 10.47941667 | U36: 11694.22948 | V36: 48.9614 | W36: 13.60038889 | AC36: 0
A37: 27 | O37: 8132.153549 | P37: 34.0477 | Q37: 9.457694444 | R37: 9010.676539 | S37: 37.7259 | T37: 10.47941667 | U37: 11694.22948 | V37: 48.9614 | W37: 13.60038889 | AC37: 0
A38: 28 | O38: 8132.153549 | P38: 34.0477 | Q38: 9.457694444 | R38: 9010.676539 | S38: 37.7259 | T38: 10.47941667 | U38: 11694.22948 | V38: 48.9614 | W38: 13.60038889 | AC38: 0
A39: 29 | AC39: 0
A40: 30 | AC40: 0
A41: 31 | AC41: 0
A42: Рівень одоризації відповідає чинним нормативним документам | O42: =SUMPRODUCT(O11:O41,' розрахунок'!K7:K37)/' розрахунок'!K38 -> 8120.855034 | P42: =SUMPRODUCT(P11:P41,' розрахунок'!K7:K37)/' розрахунок'!K38 -> 34.00039538 | Q42: =SUMPRODUCT(Q11:Q41,' розрахунок'!K7:K37)/' розрахунок'!K38 -> 9.444554271 | R42: =SUMPRODUCT(R11:R41,' розрахунок'!K7:K37)/' розрахунок'!K38 -> 8998.171321 | S42: =SUMPRODUCT(S11:S41,' розрахунок'!K7:K37)/' розрахунок'!K38 -> 37.67354315 | T42: =SUMPRODUCT(T11:T41,' розрахунок'!K7:K37)/' розрахунок'!K38 -> 10.4648731
H43: Середньозважене значення теплоти згоряння:
B46: Начальник управління Сєвєродонецького ЛВУМГ Головко Ю.О.
C47: Підрозділу підприємства, якому підпорядкована лабораторія | O47: прізвище | R47: підпис | V47: дата
B48: Інженер ІІ кат.вимірювальної хіміко-аналітичної лабораторії Єрьоменко М.О.
C49: Лабораторія, де здійснювалось вимірювання газу | O49: прізвище | R49: підпис | V49: дата
B50: Начальник служби метрології Ісаєв В.С.
C51: Підрозділу, відповідального за облік газу за маршрутом | O51: прізвище | R51: підпис | V51: дата

Sheet розрахунок (hidden)
A2: Додаток до Паспорту фізико-хімічних показників природного газу по маршруту № 655
A4: Число місяця | B4: Теплота згоряння вища, МДж/м3 | C4: Луганська область | K4: Загальний обсяг газу, м3
C5: Обсяг газу переданого за добу, м3
C6: ГРС м. Новоайдар | D6: ГРС с. Михайлюки | E6: ГРС к-п ім. Суворова | F6: ГРС к-п Розквіт | G6: ГРС с. Червоний Жовтень | H6: ГРС м. Щастя ТЕС | I6: ГРС м.Щастя город | J6: ГРС к-п ім. Артема
A7: 1 | B7: 37.28 | C7: 77913.56 | D7: 2286.83 | E7: 28651.54 | F7: 5598.85 | G7: 11517.74 | H7: 51571.33 | I7: 19897.49 | J7: 14633.37 | K7: =SUM(C7:J7) -> 212070.71
A8: 2 | B8: 37.28 | C8: 71465.01 | D8: 2121.7 | E8: 26783.25 | F8: 5315.68 | G8: 10703.17 | H8: 35839.34 | I8: 19292.78 | J8: 13949.26 | K8: 185470.19
A9: 3 | B9: 37.28 | C9: 71485.85 | D9: 2187.43 | E9: 26820.18 | F9: 5406.33 | G9: 10606.1 | H9: 7736.22 | I9: 18754.76 | J9: 13994.01 | K9: 156990.88
A10: 4 | B10: 37.28 | C10: 64430.91 | D10: 1922.59 | E10: 23716.62 | F10: 4935.66 | G10: 8956.61 | H10: 40581.14 | I10: 17100.68 | J10: 12264.51 | K10: 173908.72
A11: 5 | B11: 37.28 | C11: 60600.57 | D11: 1786.53 | E11: 22203.05 | F11: 4622.98 | G11: 8428.25 | H11: 65204.14 | I11: 16140 | J11: 11490.06 | K11: 190475.58
A12: 6 | B12: 37.8125 | C12: 67275.08 | D12: 2041.11 | E12: 24686.89 | F12: 5193.04 | G12: 9571.58 | H12: 32093.47 | I12: 17550.84 | J12: 13063.94 | K12: 171475.95
A13: 7 | B13: 37.8125 | C13: 74385.91 | D13: 2264.53 | E13: 28078.3 | F13: 5711.55 | G13: 10867.32 | H13: 45047.32 | I13: 19516.25 | J13: 14795.17 | K13: 200666.35
A14: 8 | B14: 37.8125 | C14: 79058.78 | D14: 2406.52 | E14: 29976.49 | F14: 6028.17 | G14: 11646.73 | H14: 38491.77 | I14: 20543.34 | J14: 15543.41 | K14: 203695.21
A15: 9 | B15: 37.8125 | C15: 78305.88 | D15: 2430.52 | E15: 29807.49 | F15: 5864.2 | G15: 11805.04 | H15: 26304.64 | I15: 20385.92 | J15: 15275.68 | K15: 190179.37
A16: 10 | B16: 37.8125 | C16: 74035.29 | D16: 2268.97 | E16: 28217.65 | F16: 5541.81 | G16: 10854.89 | H16: 1642.91 | I16: 19679 | J16: 14526.07 | K16: 156766.59
A17: 11 | B17: 37.8125 | C17: 69667.43 | D17: 2124.19 | E17: 26164.02 | F17: 5243.59 | G17: 10065.27 | H17: 37253.08 | I17: 18691.78 | J17: 13371.08 | K17: 182580.44
A18: 12 | B18: 37.8125 | C18: 69180.19 | D18: 2121.33 | E18: 25883.02 | F18: 5253.38 | G18: 10219.37 | H18: 67039.2 | I18: 18491.96 | J18: 12978.14 | K18: 211166.59
A19: 13 | B19: 37.8125 | C19: 64997.77 | D19: 1981.91 | E19: 23876.37 | F19: 4882.57 | G19: 9250.57 | H19: 48661.92 | I19: 17144.76 | J19: 12018.21 | K19: 182814.08
A20: 14 | B20: 37.8125 | C20: 65479.3 | D20: 1984.89 | E20: 24478.18 | F20: 4584.03 | G20: 9384.15 | H20: 58073.72 | I20: 17152.04 | J20: 12028.42 | K20: 193164.73
A21: 15 | B21: 37.8125 | C21: 63799.09 | D21: 1941.25 | E21: 23643.22 | F21: 4957.56 | G21: 9037.79 | H21: 30191.26 | I21: 16724.68 | J21: 12563.6 | K21: 162858.45
A22: 16 | B22: 37.7259 | C22: 66857.51 | D22: 2027.36 | E22: 24604.6 | F22: 5002.94 | G22: 8958.5 | H22: 49598.74 | I22: 17263.14 | J22: 13075.47 | K22: 187388.26
A23: 17 | B23: 37.7259 | C23: 67384.02 | D23: 2038.03 | E23: 24704.52 | F23: 4969.13 | G23: 9339.89 | H23: 16619.99 | I23: 17005.7 | J23: 13394.1 | K23: 155455.38
A24: 18 | B24: 37.7259 | C24: 60200.54 | D24: 1844.51 | E24: 22209.66 | F24: 4665.74 | G24: 8206.29 | H24: 46124.42 | I24: 16997.84 | J24: 13394.1 | K24: 173643.1
A25: 19 | B25: 37.7259 | C25: 56252.82 | D25: 1714.74 | E25: 20531.67 | F25: 4143.01 | G25: 7296.21 | H25: 89038.29 | I25: 16997.84 | J25: 13394.1 | K25: 209368.68
A26: 20 | B26: 37.7259 | C26: 51553.71 | D26: 1496.9 | E26: 19053.08 | F26: 3930.65 | G26: 6456.95 | H26: 33686.36 | I26: 14063.76 | J26: 13394.1 | K26: 143635.51
A27: 21 | B27: 37.7259 | C27: 50198.73 | D27: 1502.1 | E27: 18356.83 | F27: 3915.08 | G27: 6678.39 | H27: 2621.79 | I27: 13335.85 | J27: 9940.53 | K27: 106549.3
A28: 22 | B28: 37.7259 | C28: 50508.14 | D28: 1519.2 | E28: 18406.72 | F28: 3924.66 | G28: 6764.42 | H28: 55175.93 | I28: 13346.37 | J28: 10002.22 | K28: 159647.66
A29: 23 | B29: 37.7259 | C29: 51933.43 | D29: 1549.28 | E29: 19107.41 | F29: 4071.72 | G29: 7453.87 | H29: 33151.16 | I29: 13817.39 | J29: 10382.46 | K29: 141466.72
A30: 24 | B30: 37.7259 | C30: 48165.15 | D30: 1514.99 | E30: 17773.37 | F30: 3814.8 | G30: 6304.52 | H30: 39776.57 | I30: 12542.06 | J30: 9807.06 | K30: 139698.52
A31: 25 | B31: 37.7259 | C31: 49725.3 | D31: 1499.14 | E31: 18201.47 | F31: 3937.84 | G31: 7121.3 | H31: 35458.63 | I31: 13362.92 | J31: 10182.45 | K31: 139489.05
A32: 26 | B32: 37.7259 | C32: 53459.18 | D32: 1663.76 | E32: 19539.16 | F32: 4103.19 | G32: 7641.93 | H32: 36224.64 | I32: 13789.68 | J32: 10777.85 | K32: 147199.39
A33: 27 | B33: 37.7259 | C33: 53447.98 | D33: 1579.78 | E33: 19265.92 | F33: 4169.29 | G33: 7931.19 | H33: 34489.27 | I33: 13677.23 | J33: 10801.98 | K33: 145362.64
A34: 28 | B34: 37.7259 | C34: 50132.05 | D34: 1500.45 | E34: 17739.38 | F34: 3888.21 | G34: 7023.6 | H34: 30743.54 | I34: 12908.51 | J34: 10035.11 | K34: 133970.85
A35: 29
A36: 30
A37: 31
A38: Загальний обсяг газу, м3 | C38: =SUM(C7:C37) -> 1761899.18 | D38: 53320.54 | E38: 652480.06 | F38: 133675.66 | G38: 250091.64 | H38: 1088440.79 | I38: 466174.57 | J38: 351076.46 | K38: 4757158.9
A39: Енергія, МДж | C39: =SUMPRODUCT(B7:B37,C7:C37) -> 66376152.89 | D39: =SUMPRODUCT(B7:B37,D7:D37) -> 2008837.873 | E39: =SUMPRODUCT(B7:B37,E7:E37) -> 24581177.11 | F39: =SUMPRODUCT(B7:B37,F7:F37) -> 5036107.22 | G39: =SUMPRODUCT(B7:B37,G7:G37) -> 9421436.783 | H39: =SUMPRODUCT(B7:B37,H7:H37) -> 41006136.36 | I39: =SUMPRODUCT(B7:B37,I7:I37) -> 17562292.76 | J39: =SUMPRODUCT(B7:B37,J7:J37) -> 13226890.11 | K39: =SUMPRODUCT(B7:B37,K7:K37) -> 179219031.1
A40: Теплота згоряння (середньозважене значення за місяць), МДж/м³ | C40: =C39/C38 -> 37.67307099 | D40: 37.67474735 | E40: 37.67345336 | F40: 37.67407784 | G40: 37.67193811 | H40: 37.67420032 | I40: 37.67321062 | J40: =J39/J38 -> 37.67524064 | K40: =K39/K38 -> 37.67354315
A41: Теплота згоряння (середньозважене значення за місяць), ккал/м³ | C41: =C40*238.8459 -> 8998.058547 | D41: 8998.458937 | E41: 8998.149875 | F41: 8998.299028 | G41: 8997.787962 | H41: 8998.328283 | I41: 8998.091896 | J41: =J40*238.8459 -> 8998.576759 | K41: =K40*238.8459 -> 8998.171321
A42: Теплота згоряння (середньозважене значення за місяць), кВт*год./м³ | C42: =C40/3.6 -> 10.46474194 | D42: 10.4652076 | E42: 10.46484816 | F42: 10.46502162 | G42: 10.46442725 | H42: 10.46505565 | I42: 10.46478073 | J42: =J40/3.6 -> 10.46534462 | K42: =K40/3.6 -> 10.4648731

Sheet додаток
A2: Додаток до Паспорту фізико-хімічних показників природного газу №655
A4: Область | B4: ГРС, прямий споживач | C4: Cередньозважене значення вищої теплоти згоряння
C5: МДж/м³ | D5: ккал/м³ | E5: кВт*год./м³
A6: Луганська область | B6: ГРС м. Новоайдар | C6: 37.67 | D6: 8998 | E6: 10.46
B7: ГРС с. Михайлюки | C7: 37.67 | D7: 8998 | E7: 10.47
B8: ГРС к-п ім. Суворова | C8: 37.67 | D8: 8998 | E8: 10.46
B9: ГРС к-п Розквіт | C9: 37.67 | D9: 8998 | E9: 10.47
B10: ГРС с. Червоний Жовтень | C10: 37.67 | D10: 8998 | E10: 10.46
B11: ГРС м. Щастя ТЕС | C11: 37.67 | D11: 8998 | E11: 10.47
B12: ГРС м.Щастя город | C12: 37.67 | D12: 8998 | E12: 10.46
B13: ГРС к-п ім. Артема | C13: 37.68 | D13: 8999 | E13: 10.47
A14: Середньозважене значення вищої теплоти згоряння по маршруту № 655 | C14: 37.67 | D14: 8998 | E14: 10.46
A18: Начальник управління Сєвєродонецького ЛВУМГ Головко Ю.О.
A19: Підрозділу підприємства, якому підпорядкована лабораторія | D19: прізвище | E19: підпис | F19: дата
A20: Інженер ІІ кат.вимірювальної хіміко-аналітичної лабораторії Єрьоменко М.О.
A21: Лабораторія, де здійснювалось вимірювання газу | D21: прізвище | E21: підпис | F21: дата
A22: Начальник служби метрології Ісаєв В.С.
A23: Підрозділу, відповідального за облік газу за маршрутом | D23: прізвище | E23: підпис | F23: дата

Sheet variablesList (hidden)
A1: 3 | B1: x:\gaysin | C1: 10, 11, 24, 25, 127, 128, 132, 180, 207, 215 | D1: x:\
B2: x:\Illinci
B3: x:\Talne
